bitfinex-derivatives/quotes_SOLF0:USTF0_20250527
["timestamp","ask_amount","ask_price","bid_price","bid_amount"]
[1748318823690,11.4967,173.91,173.67,0.04362252]
[1748318823982,10.61525329,173.92,173.75,8.60595329]
[1748318824275,12.87930954,173.87,173.78,8.60595329]
[1748318824479,12.87930954,173.87,173.79,114.76]
[1748318824677,0.03636455,173.85,173.81,0.03914095]
[1748318824874,0.03636455,173.85,173.82,5.751]
[1748318825075,0.03636455,173.85,173.83,109.32]
[1748318825274,0.03636455,173.85,173.83,115.0709]
[1748318829183,0.03636455,173.85,173.84,5.7506]
[1748318829481,0.03636455,173.85,173.83,109.32]
[1748318831571,0.03636455,173.85,173.84,109.26]
[1748318832880,0.03636455,173.85,173.84,115.0106]
[1748318836080,7.12960954,174.01,173.84,158.1811407]
[1748318836281,7.12960954,174.01,173.89,17.31]
[1748318836476,7.12960954,174.01,173.9,223.94]
[1748318836779,7.12960954,174.01,173.9,8.55484344]
[1748318836984,7.12960954,174.01,173.91,223.92]
[1748318837180,0.0418481,173.98,173.95,5.7469]
[1748318837379,0.0418481,173.98,173.95,109.24]
[1748318838379,0.0418481,173.98,173.95,114.9869]
[1748318838585,0.0418481,173.98,173.95,109.24]
[1748318839786,0.0418481,173.98,173.96,5.7464]
[1748318840883,0.0418481,173.98,173.95,109.24]
[1748318840884,0.0418481,173.98,173.95,114.987]
[1748318841185,0.0418481,173.98,173.95,109.24]
[1748318843381,0.0418481,173.98,173.97,5.7463]
[1748318848092,1.9499,174.12,173.97,22.84968688]
[1748318848287,1.9499,174.12,174.01,8.55484344]
[1748318848591,7.6915,174.12,174.07,5.743]
[1748318848987,7.6915,174.12,174.06,231.58]
[1748318849187,0.03841389,174.11,174.08,0.03638857]
[1748318850093,5.7424,174.09,174.08,0.03638857]
[1748318851092,5.7421,174.1,174.08,0.03638857]
[1748318851497,0.03841389,174.11,174.08,0.03638857]
[1748318851994,5.7424,174.09,174.08,0.03638857]
[1748318854890,5.7424,174.09,174.08,8.857e-05]
[1748318869104,10.60490688,174.09,174.08,8.857e-05]
[1748318870904,5.7424,174.09,174.08,8.857e-05]
[1748318873303,7.7877,174.09,174.08,8.857e-05]
[1748318873502,12.65861803,174.09,174.08,8.857e-05]
[1748318875204,5.7438,174.05,174.0,237.2051]
[1748318875604,6.91621803,174.09,174.01,5.745]
[1748318876206,0.03761292,174.07,174.03,0.03741843]
[1748318877406,5.7434,174.06,174.03,0.03741843]
[1748318878003,0.03761292,174.07,174.03,0.03741843]
[1748318878204,2.55290154,174.06,174.03,0.03741843]
[1748318878402,0.03761292,174.07,174.03,0.03741843]
[1748318878718,5.7439,174.05,174.03,0.03741843]
[1748318879102,4.89282077,174.06,174.03,0.03741843]
[1748318879409,10.63652077,174.06,174.03,0.03741843]
[1748318879807,4.89282077,174.06,174.03,0.03741843]
[1748318880210,2.55889134,174.05,174.03,0.03741843]
[1748318880409,4.89282077,174.05,174.03,0.03741843]
[1748318881616,4.89282077,174.04,174.03,0.03741843]
[1748318882006,13.19688526,174.04,174.03,0.03741843]
[1748318882410,13.19756495,174.04,174.03,0.03741843]
[1748318883212,13.19825636,174.04,174.03,0.03741843]
[1748318890816,5.7455,174.0,173.96,120.42]
[1748318891615,5.7457,173.99,173.96,120.42]
[1748318891817,5.78839852,173.99,173.96,120.46383398]
[1748318893018,0.04269852,173.99,173.96,120.46383398]
[1748318895917,5.78849852,173.99,173.96,120.46383398]
[1748318896118,0.04269852,173.99,173.96,120.46383398]
[1748318896317,2.56175674,173.98,173.96,0.04383398]
[1748318896512,8.30805674,173.97,173.96,0.04383398]
[1748318897322,8.30829793,173.97,173.96,0.04383398]
[1748318898423,13.21515731,173.97,173.96,0.04383398]
[1748318898916,13.21290307,173.97,173.96,0.04383398]
[1748318902611,13.21085712,173.97,173.96,0.04383398]
[1748318904624,13.21085712,173.97,173.96,3.398e-05]
[1748318908225,5.7463,173.97,173.96,3.398e-05]
[1748318908725,8.30066058,173.97,173.96,3.398e-05]
[1748318909722,5.7463,173.97,173.96,3.398e-05]
[1748318909922,8.30058867,173.97,173.96,3.398e-05]
[1748318910218,5.7463,173.97,173.96,3.398e-05]
[1748318913327,8.30124837,173.97,173.96,3.398e-05]
[1748318913533,5.7463,173.97,173.96,3.398e-05]
[1748318917030,8.30271402,173.97,173.96,3.398e-05]
[1748318917733,13.20078278,173.97,173.96,3.398e-05]
[1748318919036,10.64436876,173.97,173.96,3.398e-05]
[1748318919329,13.20182875,173.97,173.96,3.398e-05]
[1748318922134,5.7479,173.93,173.89,5.9862]
[1748318922937,5.748,173.92,173.89,5.9862]
[1748318923236,5.78984712,173.92,173.89,6.02264796]
[1748318923639,0.04184712,173.92,173.89,6.02264796]
[1748318925739,0.04184712,173.92,173.89,0.03644796]
[1748318926037,2.5609713,173.91,173.89,0.03644796]
[1748318926238,5.7487,173.9,173.89,0.03644796]
[1748318927435,5.7484,173.91,173.89,0.03644796]
[1748318927932,0.04184712,173.92,173.89,0.03644796]
[1748318928135,2.56154122,173.91,173.89,0.03644796]
[1748318928336,0.04184712,173.92,173.89,0.03644796]
[1748318928539,5.7487,173.9,173.89,0.03644796]
[1748318929538,5.7484,173.91,173.89,0.03644796]
[1748318929932,0.04184712,173.92,173.89,0.03644796]
[1748318930139,5.78984712,173.92,173.89,0.03644796]
[1748318931743,5.7484,173.91,173.89,0.03644796]
[1748318933543,5.7487,173.9,173.89,0.03644796]
[1748318937948,8.31504658,173.9,173.89,0.03644796]
[1748318940648,13.23613634,173.9,173.89,0.03644796]
[1748318940849,7.48743634,173.9,173.89,0.03644796]
[1748318941350,13.23613634,173.9,173.89,0.03644796]
[1748318943451,13.23945218,173.9,173.89,0.03644796]
[1748318948051,13.23756422,173.9,173.89,0.03644796]
[1748318948251,7.48886422,173.9,173.89,0.03644796]
[1748318949357,2.56777446,173.9,173.89,0.03644796]
[1748318953360,0.04184712,173.92,173.89,0.03644796]
[1748318954058,0.04184712,173.92,173.9,5.7485]
[1748318954249,0.04184712,173.92,173.9,7.775]
[1748318954449,0.04184712,173.92,173.9,2.0265]
[1748318954650,5.79004712,173.92,173.9,2.0265]
[1748318956060,2.56466672,173.91,173.89,0.03644796]
[1748318956263,0.04184712,173.92,173.89,0.03644796]
[1748318956563,2.5647801,173.91,173.89,0.03644796]
[1748318956764,0.04184712,173.92,173.89,0.03644796]
[1748318957058,2.56482188,173.91,173.89,0.03644796]
[1748318957262,5.78984712,173.92,173.89,0.03644796]
[1748318957562,2.56498469,173.91,173.89,0.03644796]
[1748318957765,5.78984712,173.92,173.89,0.03644796]
[1748318957960,2.56506877,173.91,173.89,5.78544796]
[1748318958159,0.04184712,173.92,173.89,5.78544796]
[1748318958359,2.56527002,173.91,173.89,5.78544796]
[1748318958564,0.04184712,173.92,173.89,5.78544796]
[1748318958762,2.56532461,173.91,173.89,5.78544796]
[1748318959064,0.04184712,173.92,173.89,5.78544796]
[1748318959361,2.56532461,173.91,173.89,5.78544796]
[1748318959562,0.04184712,173.92,173.89,5.78544796]
[1748318959761,2.56568289,173.91,173.89,0.03644796]
[1748318959959,5.78994712,173.92,173.89,109.23644796]
[1748318960261,2.56568288,173.91,173.89,109.23644796]
[1748318960458,5.78994712,173.92,173.89,109.23644796]
[1748318960659,2.56607038,173.91,173.89,109.23644796]
[1748318960854,5.78994712,173.92,173.89,109.23644796]
[1748318961059,2.56609666,173.91,173.89,109.23644796]
[1748318961260,0.04184712,173.92,173.89,109.23644796]
[1748318961568,7.49147791,173.91,173.89,109.23644796]
[1748318961763,4.92496402,173.91,173.89,109.23644796]
[1748318962665,2.56672599,173.9,173.89,109.23644796]
[1748318964469,5.78984712,173.92,173.89,109.23644796]
[1748318964675,2.56714248,173.91,173.89,109.23644796]
[1748318964967,2.56714248,173.9,173.89,109.23644796]
[1748318966268,7.49308735,173.9,173.89,109.23644796]
[1748318966459,13.24178735,173.9,173.89,0.03644796]
[1748318968270,13.24682583,173.9,173.89,0.03644796]
[1748318968465,7.49812583,173.9,173.89,0.03644796]
[1748318969568,13.24682583,173.9,173.89,0.03644796]
[1748318969865,7.49812583,173.9,173.89,0.03644796]
[1748318971872,7.49798338,173.9,173.89,0.03644796]
[1748318973372,7.49798338,173.9,173.89,5.78544796]
[1748318974676,2.57203851,173.9,173.89,5.78544796]
[1748318975063,0.04184712,173.92,173.89,5.78544796]
[1748318975269,2.57214577,173.91,173.89,5.78544796]
[1748318975469,0.04184712,173.92,173.89,5.78544796]
[1748318975671,2.57208195,173.91,173.89,5.78544796]
[1748318975968,2.57207389,173.9,173.89,5.78544796]
[1748318976174,4.92717215,173.91,173.89,5.78544796]
[1748318977076,4.92717215,173.91,173.9,5.7487]
[1748318977272,7.49918005,173.91,173.9,5.7487]
[1748318977472,7.49911674,173.91,173.9,5.7487]
[1748318977677,2.57194459,173.91,173.9,5.7487]
[1748318980376,7.49836985,173.91,173.9,5.7487]
[1748318980578,4.92642526,173.91,173.9,5.7487]
[1748318981780,0.04184712,173.92,173.91,5.7483]
[1748318983881,0.04184712,173.92,173.9,5.7485]
[1748318984075,0.04184712,173.92,173.89,0.03644796]
[1748318985079,0.04184712,173.92,173.9,5.7484]
[1748318988181,0.04184712,173.92,173.89,5.78534796]
[1748318989779,0.04184712,173.92,173.9,109.18]
[1748318990384,5.78994712,173.92,173.89,0.03644796]
[1748318990679,5.78994712,173.92,173.9,109.18]
[1748318990886,2.56605933,173.91,173.9,109.18]
[1748318993383,0.04184712,173.92,173.91,5.7483]
[1748318993583,2.60832318,173.92,173.91,5.7483]
[1748318997688,2.60846993,173.92,173.91,5.7483]
[1748318999696,2.60841961,173.92,173.91,5.7483]
[1748319000890,0.04184712,173.92,173.91,5.7483]
[1748319002391,0.04184712,173.92,173.91,109.18]
[1748319003202,0.04184712,173.92,173.91,114.9283]
[1748319008202,0.04184712,173.92,173.91,5.7483]
[1748319008507,0.04184712,173.92,173.91,114.9283]
[1748319012808,0.04184712,173.92,173.89,0.03644796]
[1748319013010,0.04184712,173.92,173.89,115.13644796]
[1748319013210,0.04184712,173.92,173.9,109.18]
[1748319013812,2.5666904,173.91,173.9,109.18]
[1748319014513,2.5666904,173.91,173.89,115.13644796]
[1748319014703,5.79004712,173.92,173.9,109.18]
[1748319014904,2.56711639,173.91,173.9,109.18]
[1748319016813,7.49334331,173.91,173.89,0.03644796]
[1748319017015,8.04753887,173.9,173.89,0.03644796]
[1748319018218,12.97376579,173.9,173.89,0.03644796]
[1748319019215,12.97442991,173.9,173.89,0.03644796]
[1748319019416,18.72312991,173.9,173.89,0.03644796]
[1748319022817,5.7503,173.86,173.82,115.12]
[1748319023021,5.48042248,173.88,173.82,224.32]
[1748319023219,4.92622692,173.9,173.83,5.48042248]
[1748319023220,2.56645602,173.87,173.83,5.48042248]
[1748319023514,4.92622692,173.9,173.83,5.48042248]
[1748319023720,2.56565159,173.89,173.85,5.48042248]
[1748319023919,2.56565159,173.88,173.86,115.12]
[1748319024123,0.04124684,173.89,173.88,5.7493]
[1748319024318,2.60659449,173.89,173.86,115.12]
[1748319024521,0.04124684,173.89,173.86,115.12]
[1748319025720,0.04124684,173.89,173.88,5.7493]
[1748319026120,7.12960954,173.96,173.88,8.56326249]
[1748319026316,2.56460027,173.95,173.88,8.56326249]
[1748319026517,7.12960954,173.96,173.88,8.56326249]
[1748319026921,2.5642322,173.95,173.89,224.32]
[1748319027122,0.042044,173.94,173.9,109.24196052]
[1748319027421,0.042044,173.94,173.91,109.2]
[1748319027624,0.042044,173.94,173.92,5.7477]
[1748319027823,0.042044,173.94,173.93,115.12]
[1748319028725,0.042044,173.94,173.93,120.8677]
[1748319029722,0.042044,173.94,173.93,115.12]
[1748319033028,0.042044,173.94,173.93,120.8677]
[1748319048142,2.0447,174.03,173.99,5.7454]
[1748319048334,2.5599628,174.02,173.99,109.16]
[1748319048538,2.55947411,174.01,173.94,3.9772]
[1748319048739,2.55947411,174.0,173.95,109.16]
[1748319048932,2.55947411,173.99,173.96,109.16]
[1748319049132,2.55947411,173.98,173.96,109.1973901]
[1748319049437,0.03654385,173.99,173.96,109.1973901]
[1748319049732,8.30578041,173.98,173.96,0.0373901]
[1748319050038,2.55945187,173.97,173.96,0.0373901]
[1748319050338,8.3058343,173.97,173.96,0.0373901]
[1748319050735,2.5595343,173.97,173.96,0.0373901]
[1748319052230,2.55943103,173.97,173.96,0.0373901]
[1748319053740,0.03654385,173.99,173.96,0.0373901]
[1748319053938,2.55916351,173.98,173.96,0.0373901]
[1748319054137,5.7463,173.97,173.96,0.0373901]
[1748319061347,11.12215068,173.97,173.9,116.74]
[1748319061542,4.47148819,173.96,173.87,116.74]
[1748319061842,2.55888819,173.95,173.89,109.16]
[1748319062041,2.55888819,173.94,173.89,109.16]
[1748319062239,2.59811058,173.93,173.9,0.03904871]
[1748319062543,0.03922239,173.93,173.9,0.03904871]
[1748319063047,5.78712239,173.93,173.9,0.03904871]
[1748319066252,0.03922239,173.93,173.9,0.03904871]
[1748319067351,2.56255483,173.92,173.9,0.03904871]
[1748319067551,5.78702239,173.93,173.9,0.03904871]
[1748319067753,2.56255483,173.92,173.9,0.03904871]
[1748319067953,5.78702239,173.93,173.9,0.03904871]
[1748319068156,2.56255483,173.92,173.9,0.03904871]
[1748319068355,5.78702239,173.93,173.9,0.03904871]
[1748319068550,2.56347736,173.92,173.9,0.03904871]
[1748319068750,5.78702239,173.93,173.9,0.03904871]
[1748319068952,2.56346429,173.92,173.9,0.03904871]
[1748319069146,0.03922239,173.93,173.9,0.03904871]
[1748319069451,2.56334143,173.92,173.9,0.03904871]
[1748319069655,5.748,173.92,173.9,0.03904871]
[1748319073864,11.23000194,173.92,173.9,0.03904871]
[1748319075764,5.7483,173.91,173.9,0.03904871]
[1748319077267,11.23010194,173.92,173.9,0.03904871]
[1748319080871,5.7483,173.91,173.9,0.03904871]
[1748319081271,8.31066646,173.91,173.9,0.03904871]
[1748319082268,2.56236646,173.91,173.9,0.03904871]
[1748319083073,0.03922239,173.93,173.9,0.03904871]
[1748319083572,0.03922239,173.93,173.92,5.748]
[1748319086877,0.03922239,173.93,173.91,121.8682]
[1748319089978,0.03922239,173.93,173.92,5.748]
[1748319090874,0.03922239,173.93,173.9,0.03904871]
[1748319091176,5.78702239,173.93,173.9,0.03904871]
[1748319091476,0.03922239,173.93,173.9,0.03904871]
[1748319091975,2.56281372,173.92,173.9,0.03904871]
[1748319092275,0.03922239,173.93,173.9,0.03904871]
[1748319092475,2.56271433,173.92,173.9,0.03904871]
[1748319092678,0.03922239,173.93,173.9,0.03904871]
[1748319092878,2.56275682,173.92,173.9,0.03904871]
[1748319093081,0.03922239,173.93,173.9,0.03904871]
[1748319093378,5.7483,173.91,173.9,0.03904871]
[1748319093578,8.31101138,173.91,173.9,0.03904871]
[1748319095681,13.23982797,173.91,173.9,0.03904871]
[1748319097682,7.49152797,173.91,173.9,0.03904871]
[1748319099888,13.23982797,173.91,173.9,0.03904871]
[1748319101187,13.24144835,173.91,173.9,0.03904871]
[1748319102985,13.24226529,173.91,173.9,0.03904871]
[1748319104892,13.24334789,173.91,173.9,0.03904871]
[1748319105986,18.72708779,173.91,173.9,0.03904871]
[1748319106191,5.7493,173.88,173.87,109.18]
[1748319106395,11.2330399,173.88,173.87,109.18]
[1748319106586,11.2330399,173.88,173.85,115.26]
[1748319106789,5.7497,173.87,173.85,115.26]
[1748319106987,5.7497,173.87,173.85,224.44]
[1748319108196,11.27184474,173.88,173.85,224.44]
[1748319108693,5.52234474,173.88,173.85,224.44]
[1748319110291,5.52234474,173.88,173.85,230.1902]
[1748319111194,0.03860484,173.88,173.86,5.7499]
[1748319111393,0.03860484,173.88,173.85,224.44]
[1748319111896,0.03860484,173.88,173.85,230.1902]
[1748319112393,0.03860484,173.88,173.86,5.75]
[1748319112594,0.03860484,173.88,173.85,224.44]
[1748319114099,0.03860484,173.88,173.85,230.1903]
[1748319114600,0.03860484,173.88,173.87,5.7497]
[1748319116002,0.03860484,173.88,173.86,5.7499]
[1748319117202,0.03860484,173.88,173.85,230.1903]
[1748319118712,0.03860484,173.88,173.86,5.75]
[1748319120611,0.03860484,173.88,173.87,5.7497]
[1748319121812,0.03860484,173.88,173.85,230.1901]
[1748319126013,5.78810484,173.88,173.85,224.44]
[1748319126214,0.03860484,173.88,173.85,224.44]
[1748319126414,0.03860484,173.88,173.84,0.03864543]
[1748319126615,5.7497,173.87,173.85,224.18]
[1748319128313,0.03860484,173.88,173.85,224.18]
[1748319129311,0.03860484,173.88,173.86,5.7498]
[1748319129516,0.03860484,173.88,173.85,224.18]
[1748319130012,0.03860484,173.88,173.86,5.7497]
[1748319130515,0.03860484,173.88,173.87,5.7497]
[1748319135219,2.60687788,173.88,173.87,5.7497]
[1748319135722,2.60687788,173.88,173.86,5.7499]
[1748319135919,0.03860484,173.88,173.86,5.7499]
[1748319137119,2.56907426,173.87,173.86,5.7499]
[1748319137320,2.56907426,173.87,173.85,224.18]
[1748319137620,5.52174624,173.88,173.84,0.03864543]
[1748319137922,2.56915077,173.87,173.84,109.23864543]
[1748319138225,5.52174624,173.88,173.84,0.03864543]
[1748319138417,2.56932202,173.87,173.84,0.03864543]
[1748319138618,4.94009134,173.87,173.84,0.03864543]
[1748319139225,2.5694378,173.86,173.84,0.03864543]
[1748319139523,10.68979134,173.87,173.84,0.03864543]
[1748319139724,2.56931826,173.86,173.84,0.03864543]
[1748319139924,10.68979134,173.87,173.84,0.03864543]
[1748319140124,8.31931826,173.86,173.84,0.03864543]
[1748319140327,2.56931826,173.85,173.84,0.03864543]
[1748319141921,5.7498,173.87,173.84,109.25864543]
[1748319142121,2.56895594,173.86,173.84,109.25864543]
[1748319142323,5.7498,173.87,173.84,109.25864543]
[1748319142524,8.31918078,173.86,173.84,109.25864543]
[1748319142821,4.94016565,173.86,173.84,109.25864543]
[1748319143628,4.94016565,173.86,173.84,0.03864543]
[1748319143827,4.94016565,173.86,173.84,109.25864543]
[1748319144224,0.03860484,173.88,173.84,109.25864543]
[1748319144522,2.56883422,173.87,173.84,109.25864543]
[1748319144724,2.56883422,173.86,173.84,5.78924543]
[1748319145023,5.78820484,173.88,173.84,115.00924543]
[1748319145327,7.50866929,173.87,173.84,115.00924543]
[1748319145529,2.56887671,173.86,173.84,115.00924543]
[1748319145719,4.93979258,173.87,173.84,115.00924543]
[1748319145923,2.56859976,173.86,173.84,115.00924543]
[1748319146219,4.93979258,173.87,173.84,115.00924543]
[1748319146528,2.5687095,173.86,173.84,109.25864543]
[1748319146729,10.68949258,173.87,173.84,109.25864543]
[1748319147026,7.50824835,173.86,173.84,109.25864543]
[1748319147219,4.93979258,173.86,173.84,0.03864543]
[1748319147424,10.68989258,173.86,173.84,0.03864543]
[1748319147619,4.93979258,173.86,173.84,0.03864543]
[1748319147823,5.4831414,173.87,173.84,0.03864543]
[1748319148027,2.56833129,173.86,173.84,0.03864543]
[1748319148227,5.4831414,173.87,173.84,0.03864543]
[1748319148423,2.56833062,173.86,173.84,0.03864543]
[1748319148627,11.2329414,173.87,173.84,0.03864543]
[1748319148827,0.03860484,173.88,173.86,5.75]
[1748319149029,2.56811062,173.87,173.86,5.75]
[1748319149333,2.56811062,173.87,173.85,5.7502]
[1748319149630,0.03860484,173.88,173.85,5.7502]
[1748319149932,2.56815809,173.87,173.85,5.7502]
[1748319150130,0.03860484,173.88,173.85,5.7502]
[1748319150332,2.5682376,173.87,173.85,5.7502]
[1748319150528,4.93940675,173.87,173.85,5.7502]
[1748319151231,4.93940675,173.87,173.84,5.78924543]
[1748319152127,2.56822636,173.86,173.84,5.78924543]
[1748319152329,5.7499,173.87,173.84,0.03864543]
[1748319152530,2.56801724,173.86,173.84,0.03864543]
[1748319152726,5.52174624,173.88,173.84,0.03864543]
[1748319152925,2.56801887,173.87,173.84,0.03864543]
[1748319153225,2.56801887,173.86,173.84,0.03864543]
[1748319153427,5.7501,173.86,173.84,0.03864543]
[1748319154035,5.7501,173.86,173.84,109.25864543]
[1748319156335,5.7498,173.87,173.84,109.25864543]
[1748319156534,2.56797752,173.86,173.84,109.25864543]
[1748319156728,5.7498,173.87,173.84,109.25864543]
[1748319156929,8.31799999,173.86,173.84,109.25864543]
[1748319157128,5.75,173.86,173.84,109.25864543]
[1748319161335,5.7498,173.87,173.84,109.25864543]
[1748319161536,2.56771914,173.86,173.84,0.03864543]
[1748319161737,5.7498,173.87,173.84,109.25864543]
[1748319161937,2.56789511,173.86,173.84,109.25864543]
[1748319162136,5.7498,173.87,173.84,109.25864543]
[1748319162437,2.56784532,173.86,173.84,109.25864543]
[1748319162735,5.7498,173.87,173.84,109.25864543]
[1748319162940,2.56787991,173.86,173.84,109.25864543]
[1748319163135,5.7498,173.87,173.84,109.25864543]
[1748319163326,2.5678359,173.86,173.84,109.25864543]
[1748319163532,5.7498,173.87,173.84,109.25864543]
[1748319163734,2.56787215,173.86,173.84,109.25864543]
[1748319163938,5.7498,173.87,173.84,109.25864543]
[1748319164134,2.56787215,173.86,173.84,109.25864543]
[1748319164335,5.7498,173.87,173.84,109.25864543]
[1748319164536,2.56782654,173.86,173.84,109.25864543]
[1748319164835,5.7498,173.87,173.84,109.25864543]
[1748319165033,2.5678649,173.86,173.84,109.25864543]
[1748319165237,5.7498,173.87,173.84,109.25864543]
[1748319165437,2.5678649,173.86,173.84,109.25864543]
[1748319165640,5.7498,173.87,173.84,109.25864543]
[1748319165831,2.56790277,173.86,173.84,109.25864543]
[1748319166031,5.7498,173.87,173.84,109.25864543]
[1748319166334,2.56790277,173.86,173.84,109.25864543]
[1748319166534,5.7498,173.87,173.84,109.25864543]
[1748319166733,5.7503,173.85,173.84,0.03864543]
[1748319166932,8.31824001,173.85,173.84,0.03864543]
[1748319167131,2.56794001,173.85,173.84,0.03864543]
[1748319167333,7.50815594,173.85,173.84,0.03864543]
[1748319170742,7.51008847,173.85,173.84,0.03864543]
[1748319171344,13.26038847,173.85,173.84,0.03864543]
[1748319173038,18.74352987,173.85,173.84,0.03864543]
[1748319179852,18.74160839,173.85,173.84,0.03864543]
[1748319184254,18.74092649,173.85,173.84,0.03864543]
[1748319185754,7.50748509,173.85,173.84,0.03864543]
[1748319187556,13.25778509,173.85,173.84,0.03864543]
[1748319193966,13.25670399,173.85,173.84,0.03864543]
[1748319195563,7.50640399,173.85,173.84,0.03864543]
[1748319198868,7.50664276,173.85,173.84,0.03864543]
[1748319199070,4.94021593,173.85,173.84,0.03864543]
[1748319199473,2.56654745,173.85,173.84,0.03864543]
[1748319199670,5.7497,173.87,173.84,0.03864543]
[1748319199876,2.56658723,173.86,173.84,0.03864543]
[1748319200074,5.7497,173.87,173.84,5.78904543]
[1748319200277,2.56658723,173.86,173.84,5.78904543]
[1748319200476,5.7497,173.87,173.84,5.78904543]
[1748319200773,2.56677859,173.86,173.84,5.78904543]
[1748319200975,4.93947834,173.86,173.84,5.78904543]
[1748319201776,5.78810484,173.88,173.84,5.78904543]
[1748319202070,2.56694889,173.87,173.84,5.78904543]
[1748319202269,2.56694889,173.86,173.84,5.78904543]
[1748319202477,5.78810484,173.88,173.84,5.78904543]
[1748319202677,2.56712722,173.87,173.84,5.78904543]
[1748319202868,2.56712722,173.86,173.84,5.78904543]
[1748319203071,2.56713692,173.85,173.84,5.78904543]
[1748319204974,2.56750773,173.85,173.84,5.78904543]
[1748319205981,5.78810484,173.88,173.84,5.78904543]
[1748319206186,2.56754247,173.87,173.84,5.78904543]
[1748319206380,0.03860484,173.88,173.85,5.4831414]
[1748319206776,0.03860484,173.88,173.87,5.4831414]
[1748319206976,0.03860484,173.88,173.87,120.4031414]
[1748319208080,0.03860484,173.88,173.87,126.1528414]
[1748319208281,0.03860484,173.88,173.87,120.4031414]
[1748319209479,0.03860484,173.88,173.87,224.14]
[1748319209684,0.03860484,173.88,173.84,120.44178683]
[1748319209975,5.7501,173.86,173.85,109.22]
[1748319211680,5.7497,173.87,173.85,109.22]
[1748319212282,5.75,173.86,173.85,109.22]
[1748319213485,5.75,173.86,173.84,0.03864543]
[1748319213678,5.75,173.86,173.85,109.22]
[1748319214884,5.7497,173.87,173.85,109.22]
[1748319218683,5.75,173.86,173.84,0.03864543]
[1748319218985,0.03860484,173.88,173.85,109.22]
[1748319219185,5.75,173.86,173.85,109.22]
[1748319219385,8.31436226,173.86,173.85,109.22]
[1748319219786,8.31436226,173.86,173.84,0.03864543]
[1748319219787,5.7503,173.85,173.84,0.03864543]
[1748319220186,8.31476298,173.85,173.84,0.03864543]
[1748319220783,13.25135678,173.85,173.84,0.03864543]
[1748319226994,13.2523345,173.85,173.84,0.03864543]
[1748319231996,18.73932478,173.85,173.84,0.03864543]
[1748319236301,18.73957525,173.85,173.84,0.03864543]
[1748319239901,18.74049309,173.85,173.84,0.03864543]
[1748319240204,18.74049309,173.85,173.84,4.543e-05]
[1748319240999,12.99019309,173.85,173.78,224.12]
[1748319241205,5.48699028,173.81,173.78,109.24]
[1748319241796,5.7523,173.8,173.78,109.24]
[1748319241995,5.52479547,173.81,173.77,114.91792819]
[1748319242294,5.52479547,173.81,173.77,224.15792819]
[1748319243109,5.752,173.8,173.77,224.15792819]
[1748319243305,5.52479547,173.81,173.77,224.15792819]
[1748319244415,5.7524,173.79,173.77,224.15792819]
[1748319247304,5.7526,173.78,173.77,114.91792819]
[1748319247510,5.7526,173.78,173.77,224.17792819]
[1748319248710,5.7526,173.78,173.77,114.91792819]
[1748319248912,5.7526,173.78,173.77,224.17792819]
[1748319249211,5.7526,173.78,173.77,114.91792819]
[1748319249411,5.7526,173.78,173.77,224.17792819]
[1748319250109,5.7526,173.78,173.77,114.91792819]
[1748319252215,5.7526,173.78,173.77,0.03792819]
[1748319256527,5.7524,173.79,173.77,0.03792819]
[1748319258822,5.7526,173.78,173.77,0.03792819]
[1748319262226,8.31610804,173.78,173.77,0.03792819]
[1748319263221,5.7526,173.78,173.77,0.03792819]
[1748319263426,8.31669699,173.78,173.77,0.03792819]
[1748319264225,2.56409699,173.78,173.77,0.03792819]
[1748319264629,2.56439603,173.78,173.77,0.03792819]
[1748319265328,5.7521,173.8,173.77,0.03792819]
[1748319265520,2.56427685,173.79,173.77,0.03792819]
[1748319265723,5.7521,173.8,173.77,0.03792819]
[1748319265922,2.56442536,173.79,173.77,0.03792819]
[1748319266218,5.7523,173.79,173.77,0.03792819]
[1748319267729,5.7526,173.78,173.77,0.03792819]
[1748319269630,8.31755471,173.78,173.77,0.03792819]
[1748319270133,2.56495471,173.78,173.77,0.03792819]
[1748319270330,2.56495335,173.78,173.77,0.03792819]
[1748319270632,2.56519254,173.78,173.77,0.03792819]
[1748319271429,8.31779254,173.78,173.77,0.03792819]
[1748319273832,5.7526,173.78,173.77,0.03792819]
[1748319274033,8.32058272,173.78,173.77,0.03792819]
[1748319274234,13.2646861,173.78,173.77,0.03792819]
[1748319275735,13.26536398,173.78,173.77,0.03792819]
[1748319279439,13.26651488,173.78,173.77,0.03792819]
[1748319281741,5.7526,173.78,173.77,0.03792819]
[1748319284041,8.32490314,173.78,173.77,0.03792819]
[1748319285239,5.7526,173.78,173.77,0.03792819]
[1748319285445,8.32581632,173.78,173.77,0.03792819]
[1748319286649,13.27687723,173.78,173.77,0.03792819]
[1748319289151,13.27729102,173.78,173.77,0.03792819]